bitfinex-derivatives/quotes_ETHF0:USTF0_20251025
["timestamp","ask_amount","ask_price","bid_price","bid_amount"]
[1761352453338,3.6551,3919.0,3918.9,0.7793]
[1761352453850,1.81339132,3919.0,3918.9,0.7793]
[1761352454244,0.6901,3919.0,3918.9,0.7793]
[1761352455037,0.6901,3919.0,3918.9,0.5521]
[1761352456048,0.6901,3919.0,3918.9,0.3322]
[1761352458654,0.6901,3919.0,3918.9,0.5521]
[1761352459255,0.6901,3919.0,3918.9,0.3322]
[1761352459458,1.15567,3918.7,3918.6,0.5476]
[1761352459760,1.15567,3918.7,3918.6,0.3277]
[1761352461156,1.15567,3918.7,3917.9,3.16136]
[1761352461157,0.6964,3918.4,3918.3,0.3277]
[1761352461451,1.60695395,3918.4,3918.3,0.5476]
[1761352461659,0.4536,3918.4,3918.3,0.7748]
[1761352463862,0.6964,3918.4,3918.3,0.7748]
[1761352464458,0.6964,3918.4,3918.3,0.5476]
[1761352466764,1.36419971,3918.4,3918.3,0.7748]
[1761352467264,0.4536,3918.4,3918.3,0.7748]
[1761352467465,1.36418088,3918.4,3918.3,0.7748]
[1761352468465,1.36418459,3918.4,3918.3,0.7748]
[1761352469561,0.4536,3918.4,3918.3,0.7748]
[1761352469755,1.3642113,3918.4,3918.3,0.7748]
[1761352470162,0.4536,3918.4,3918.3,0.7748]
[1761352470362,1.3642113,3918.4,3918.3,0.7748]
[1761352476182,0.9106113,3918.4,3918.3,0.7748]
[1761352477684,1.1449113,3918.4,3918.3,0.7748]
[1761352482179,0.2343,3918.4,3918.3,0.7748]
[1761352482374,1.1449113,3918.4,3918.3,0.7748]
[1761352487477,0.9106113,3918.4,3918.3,0.7748]
[1761352489986,0.9106113,3918.8,3918.6,1.23568]
[1761352490189,0.9106113,3918.8,3918.7,0.7764]
[1761352490384,0.9106113,3918.9,3918.8,0.7764]
[1761352490587,0.45924,3919.0,3918.8,0.7764]
[1761352490792,0.67164,3919.0,3918.9,0.7764]
[1761352491493,1.36583093,3919.1,3919.0,0.9154]
[1761352491688,9.66861,3919.2,3919.1,0.3388]
[1761352491996,9.66861,3919.2,3919.1,0.7764]
[1761352492185,9.88871,3919.2,3919.1,0.7764]
[1761352496493,10.13161,3919.2,3919.1,0.7764]
[1761352496991,10.13161,3919.2,3918.7,0.3388]
[1761352496992,0.6754,3918.8,3918.7,0.3388]
[1761352497188,0.89177,3918.7,3918.6,0.3388]
[1761352497381,0.2201,3918.4,3918.3,0.3388]
[1761352497585,1.34250389,3918.4,3918.3,0.3388]
[1761352497785,1.58550389,3918.4,3918.3,0.3388]
[1761352498393,1.58550389,3918.4,3918.3,0.5663]
[1761352498587,1.34250389,3918.4,3918.3,0.5663]
[1761352498896,1.34250389,3918.4,3918.3,0.7941]
[1761352499298,0.4325,3918.4,3918.3,0.7941]
[1761352500602,0.6755,3918.4,3918.3,0.7941]
[1761352502297,0.4325,3918.4,3918.3,0.7941]
[1761352507694,1.36930516,3918.6,3918.5,0.2131]
[1761352507997,1.36930516,3918.6,3918.5,0.9053]
[1761352508294,1.59260516,3918.6,3918.5,0.9053]
[1761352508500,2.05660516,3918.6,3918.5,0.9053]
[1761352510698,1.35441516,3918.6,3918.5,0.9053]
[1761352515106,0.4444,3918.6,3918.5,0.9053]
[1761352515309,1.35446374,3918.6,3918.5,0.9053]
[1761352515706,0.91006374,3918.6,3918.5,0.9053]
[1761352515909,10.36000583,3918.8,3918.5,0.9053]
[1761352515910,0.91006374,3918.7,3918.6,0.7665]
[1761352516101,9.90506374,3918.8,3918.7,0.3386]
[1761352516407,9.2183,3918.8,3918.7,0.7665]
[1761352516706,9.4394,3918.8,3918.7,0.7665]
[1761352521511,9.6823,3918.8,3918.7,0.3386]
[1761352522310,9.6823,3918.8,3918.7,0.5534]
[1761352524108,11.04730583,3918.8,3918.7,0.5534]
[1761352525806,9.4394,3918.8,3918.7,0.7665]
[1761352526301,3.2743,3919.5,3919.0,0.3519]
[1761352526302,1.36500583,3919.1,3919.0,0.3519]
[1761352526501,1.58830583,3919.1,3919.0,0.9053]
[1761352526703,0.4444,3919.1,3919.0,0.9053]
[1761352527211,0.6873,3919.1,3919.0,0.9053]
[1761352530506,0.4444,3919.1,3919.0,0.9053]
[1761352531601,9.90421487,3919.2,3919.0,1.02593]
[1761352531912,8.994,3919.2,3919.0,1.02593]
[1761352532107,8.994,3919.2,3919.1,0.3386]
[1761352532316,0.91021487,3919.4,3919.3,0.7665]
[1761352532616,4.34372084,3919.7,3919.6,0.7665]
[1761352534113,3.43350597,3919.7,3919.6,0.7665]
[1761352534613,0.00240597,3919.7,3919.6,0.7665]
[1761352534808,0.00240597,3919.7,3919.6,3.9743]
[1761352536712,3.2078,3920.5,3920.3,0.45908]
[1761352537015,3.2078,3920.5,3920.4,0.7665]
[1761352537817,0.00193696,3920.5,3920.4,0.7665]
[1761352542224,9.2345,3921.2,3920.4,0.7665]
[1761352542225,9.90221487,3921.2,3921.0,0.459]
[1761352542419,8.992,3921.2,3921.1,0.7968]
[1761352542610,4.11801487,3921.3,3921.2,0.3512]
[1761352542920,3.2078,3921.3,3921.2,0.7968]
[1761352543324,3.21074216,3921.3,3921.2,0.79960778]
[1761352543724,3.43644216,3921.3,3921.2,0.79960778]
[1761352544126,4.35251216,3921.3,3921.2,0.58470778]
[1761352544724,3.89354216,3921.3,3921.2,0.58470778]
[1761352545634,3.43644216,3921.3,3921.2,0.79960778]
[1761352545922,0.00294216,3921.3,3921.2,0.79960778]
[1761352546121,0.22864216,3921.3,3921.2,0.79960778]
[1761352548728,0.00294216,3921.3,3921.2,0.79960778]
[1761352549517,3.2078,3921.8,3921.5,0.1411]
[1761352549732,12.8796,3922.2,3922.1,0.5819]
[1761352549922,12.6371,3922.2,3922.1,0.7968]
[1761352550123,12.8796,3922.2,3922.1,0.7968]
[1761352550626,12.88232765,3922.2,3922.1,0.7968]
[1761352550826,12.88232765,3922.2,3922.1,0.3512]
[1761352552725,0.6828,3922.1,3922.0,0.3512]
[1761352553335,1.14167,3922.1,3922.0,0.3512]
[1761352557738,0.2429,3921.6,3921.4,0.3264]
[1761352557927,0.6893,3921.4,3921.3,2.702]
[1761352558127,1.14827,3921.3,3921.2,0.00280778]
[1761352559428,1.14827,3921.3,3921.2,0.32920778]
[1761352560032,0.6893,3921.3,3921.2,0.32920778]
[1761352560233,0.6893,3921.3,3921.2,0.54730778]
[1761352560537,0.2274,3921.5,3921.4,0.779]
[1761352560832,0.4464,3921.5,3921.4,0.779]
[1761352561033,0.6893,3921.5,3921.4,0.779]
[1761352561236,1.59951487,3921.5,3921.4,0.779]
[1761352561638,0.6893,3921.5,3921.4,0.779]
[1761352562336,0.4464,3921.5,3921.4,0.779]
[1761352562738,12.4222,3921.7,3921.5,0.4646]
[1761352562932,12.4222,3921.7,3921.6,0.779]
[1761352563337,12.1948,3921.7,3921.6,0.779]
[1761352563738,12.4222,3921.7,3921.6,0.779]
[1761352567241,9.2144,3921.7,3921.6,0.779]
[1761352568134,0.68991,3921.8,3921.7,0.3504]
[1761352568339,0.68991,3921.8,3921.7,0.8028]
[1761352570135,1.83292487,3921.8,3921.7,0.8028]
[1761352570336,2.07632487,3921.8,3921.7,0.8028]
[1761352571747,1.16611,3921.8,3921.7,0.8028]
[1761352572544,0.7072,3921.5,3921.4,0.3504]
[1761352572948,0.7072,3921.5,3921.4,0.569]
[1761352575348,0.4638,3921.5,3921.4,0.8028]
[1761352575845,0.231,3921.5,3921.4,0.8028]
[1761352576049,0.91025564,3921.7,3921.6,0.8028]
[1761352576441,0.91025564,3921.8,3921.7,0.45892]
[1761352576740,4.57280583,3922.0,3921.9,1.2617]
[1761352576741,0.91025564,3922.0,3921.9,1.2617]
[1761352576940,0.91298329,3922.2,3922.1,0.8028]
[1761352579651,0.00272765,3922.2,3922.1,0.8028]
[1761352582152,0.91258198,3922.2,3922.1,0.8028]
[1761352583143,0.00272765,3922.2,3922.1,0.8028]
[1761352585347,0.82127439,3922.4,3922.2,0.45886]
[1761352585544,1.36500583,3922.9,3922.8,0.8028]
[1761352585745,1.36500583,3923.1,3923.0,0.9389]
[1761352586342,10.58200583,3923.2,3923.1,0.8028]
[1761352586751,10.58488546,3923.2,3923.1,0.8028]
[1761352587455,1.59888546,3923.2,3923.1,0.8028]
[1761352590257,0.23387963,3923.2,3923.1,0.8028]
[1761352593454,0.93316,3923.1,3923.0,0.3504]
[1761352593656,0.7072,3923.1,3923.0,0.3504]
[1761352593961,0.7072,3923.1,3923.0,0.7051]
[1761352594657,0.4638,3923.1,3923.0,0.9389]
[1761352597756,0.22977963,3923.2,3923.1,0.8106]
[1761352598363,0.45337963,3923.2,3923.1,0.8106]
[1761352598558,0.4505,3922.8,3922.7,0.3448]
[1761352598763,0.4505,3922.8,3922.7,0.8106]
[1761352598961,1.15482963,3923.2,3923.1,0.5771]
[1761352602967,0.91212963,3923.2,3923.1,0.8106]
[1761352603361,1.15482963,3923.2,3923.1,0.8106]
[1761352609872,0.69607963,3923.2,3923.1,0.8106]
[1761352610169,0.00287963,3923.2,3923.1,0.8106]
[1761352620078,0.22247963,3923.2,3923.1,0.8106]
[1761352620280,0.43737963,3923.2,3923.1,0.8106]
[1761352621480,0.00287963,3923.2,3923.1,0.8106]
[1761352623888,0.22247963,3923.2,3923.1,0.8106]
[1761352625388,0.00287963,3923.2,3923.1,0.8106]
[1761352627177,0.67987963,3923.2,3923.1,0.3448]
[1761352627683,0.67987963,3923.2,3923.1,0.5737]
[1761352627985,0.43737963,3923.2,3923.1,0.5737]
[1761352629778,0.67987963,3923.2,3923.1,0.5737]
[1761352630380,0.67987963,3923.2,3923.1,0.7955]
[1761352630381,0.22247963,3923.2,3923.1,0.7955]
[1761352631188,0.67687963,3923.2,3923.1,0.5737]
[1761352631489,0.43437963,3923.2,3923.1,0.7955]
[1761352632685,0.00287963,3923.2,3923.1,1.25426]
[1761352632881,1.36897019,3923.2,3923.1,1.25426]
[1761352634479,0.00287963,3923.2,3923.1,1.25426]
[1761352636483,0.45027963,3923.2,3923.1,1.03246]
[1761352636788,0.45027963,3923.2,3923.1,1.25426]
[1761352638192,0.00287963,3923.2,3923.1,1.25426]
[1761352644296,0.00287963,3923.2,3923.1,3.95626]
[1761352662216,0.91145568,3923.9,3923.8,0.45867]
[1761352662421,0.91145568,3923.9,3923.8,1.20707]
[1761352663324,0.91415027,3923.9,3923.8,1.20707]
[1761352666230,1.34125027,3923.9,3923.8,0.7484]
[1761352671828,1.58365027,3923.9,3923.8,0.5309]
[1761352673129,1.34125027,3923.9,3923.8,0.7484]
[1761352675030,1.12695027,3923.9,3923.8,0.7484]
[1761352677229,0.21549459,3923.9,3923.8,0.7484]
[1761352678930,0.00269459,3923.9,3923.8,0.7484]
[1761352679132,0.91421956,3923.9,3923.8,0.7484]
[1761352680432,2.28384199,3925.0,3923.8,0.7484]
[1761352680433,1.96464028,3925.5,3925.0,1.14634]
[1761352680643,0.4623,3925.5,3925.4,5.04113435]
[1761352680837,0.3683,3926.0,3925.9,0.86073]
[1761352681026,0.3683,3926.0,3925.9,13.76576481]
[1761352681339,0.00189521,3926.0,3925.9,13.08137745]
[1761352681639,0.0656,3927.0,3926.4,0.86067]
[1761352681935,0.2933,3926.5,3926.4,12.94737]
[1761352682126,0.2933,3926.5,3926.4,13.08147]
[1761352682439,0.0680166,3926.5,3926.4,4.06847]
[1761352682634,0.0680166,3926.5,3926.4,13.08147]
[1761352682837,0.3891166,3926.5,3926.4,13.08147]
[1761352684234,0.8480166,3926.5,3926.4,12.68117]
[1761352684640,0.8480166,3926.5,3926.4,12.94937]
[1761352685734,0.8480166,3926.5,3926.4,13.08347]
[1761352686135,0.6162166,3926.5,3926.4,13.08347]
[1761352686739,0.3891166,3926.5,3926.4,13.08347]
[1761352687041,0.6162166,3926.5,3926.4,13.08347]
[1761352687235,0.8480166,3926.5,3926.4,9.2782]
[1761352687843,0.8480166,3926.5,3926.4,12.486]
[1761352689842,0.8480166,3926.5,3926.4,3.476]
[1761352690141,0.8480166,3926.5,3926.4,12.484]
[1761352691244,0.6162166,3926.5,3926.4,12.6176]
[1761352692944,0.6162166,3926.5,3926.4,12.484]
[1761352694849,0.6162166,3926.5,3926.4,12.6176]
[1761352696850,0.8471166,3926.5,3926.4,12.484]
[1761352697354,0.7107166,3926.5,3926.4,12.6176]
[1761352697545,0.7107166,3926.5,3926.4,12.484]
[1761352698951,0.9416166,3926.5,3926.4,12.2098]
[1761352699149,0.9416166,3926.5,3926.4,12.2078]
[1761352699850,0.9416166,3926.5,3926.4,12.3414]
[1761352700448,0.9416166,3926.5,3926.4,0.59197]
[1761352700655,0.9416166,3926.5,3926.4,9.1336]
[1761352701446,0.9416166,3926.5,3926.4,0.1336]
[1761352701653,0.9416166,3926.5,3926.1,2.8356]
[1761352701654,0.8048,3926.2,3926.1,2.8356]
[1761352701847,0.8048,3926.2,3926.1,11.8356]
[1761352702047,0.8048,3926.2,3926.1,12.4276]
[1761352702250,0.8048,3926.2,3926.1,3.4276]
[1761352702556,0.8048,3926.2,3926.1,12.4266]
[1761352703850,0.8048,3926.2,3926.1,9.7246]
[1761352704254,0.8048,3926.2,3926.1,10.40508114]
[1761352707459,0.8048,3926.2,3926.1,9.94668114]
[1761352707656,0.8048,3926.2,3926.1,0.94768114]
[1761352707864,0.8048,3926.2,3926.1,0.68048114]
[1761352708357,0.8048,3926.2,3925.6,0.58791199]
[1761352708358,0.3506,3925.8,3925.6,0.58791199]
[1761352708554,0.8048,3925.6,3925.5,3.2078]
[1761352709461,0.8048,3925.6,3925.5,3.21030976]
[1761352710962,0.8048,3925.6,3925.5,3.34390976]
[1761352713560,0.8048,3925.6,3925.5,0.00250976]
[1761352720465,0.8048,3925.6,3925.5,0.67945637]
[1761352721469,0.8048,3925.6,3925.5,0.26990976]
[1761352721669,0.8048,3925.6,3925.5,0.94685917]
[1761352722057,0.8048,3925.6,3925.5,0.26990976]
[1761352722262,0.8048,3925.6,3925.5,0.00250976]
[1761352729379,1.01072997,3925.6,3925.5,0.00250976]
[1761352729567,1.01072997,3925.6,3925.0,3.2078]
[1761352729568,0.7799,3925.1,3925.0,3.2078]
[1761352729875,0.7799,3925.1,3925.0,3.88173797]
[1761352730466,0.7799,3925.1,3925.0,3.88424989]
[1761352730670,1.23842,3925.1,3925.0,3.88424989]
[1761352731768,1.23842,3925.1,3925.0,0.67644989]
[1761352737075,0.4741,3924.5,3924.4,1.04728817]
[1761352737274,0.9184,3924.5,3924.4,1.04728817]
[1761352737681,0.9184,3924.5,3924.4,0.1337]
[1761352737980,0.9184,3924.5,3924.4,0.13570819]
[1761352738177,0.9184,3924.5,3924.4,0.91559636]
[1761352738385,0.9184,3924.5,3924.4,0.00200819]
[1761352740274,0.9184,3924.5,3924.4,0.13560819]
[1761352741586,0.9184,3924.5,3924.4,0.00200819]
[1761352744782,0.7881,3923.9,3923.8,3.2078]
[1761352744978,1.24676,3923.9,3923.8,3.2078]
[1761352745990,1.24676,3923.9,3923.8,3.21075917]
[1761352746886,0.3318,3923.9,3923.8,3.47795917]
[1761352747085,0.3318,3923.9,3923.8,3.61155917]
[1761352747588,0.5592,3923.9,3923.8,3.61155917]
[1761352748184,0.7713,3923.9,3923.8,3.47795917]
[1761352748984,0.7713,3923.9,3923.8,3.881372]
[1761352750290,0.7713,3923.9,3923.8,4.015072]
[1761352750693,0.7713,3923.9,3923.8,4.148772]
[1761352753802,0.7713,3923.9,3923.8,3.881372]
[1761352755503,0.7713,3923.9,3923.8,0.673572]
[1761352755807,0.7834,3923.1,3923.0,3.2078]
[1761352755998,0.7834,3923.1,3923.0,3.87746365]
[1761352756701,0.7858013,3923.1,3923.0,3.87984166]
[1761352758109,0.7858013,3923.1,3923.0,4.01354166]
[1761352759809,0.7858013,3923.1,3923.0,3.87984166]
[1761352760301,0.7858013,3923.1,3923.0,4.01354166]
[1761352764112,0.7858013,3923.1,3923.0,4.14724166]
[1761352767519,0.7858013,3923.1,3923.0,4.01354166]
[1761352768911,0.7858013,3923.1,3923.0,4.14724166]
[1761352769413,0.7858013,3923.1,3923.0,4.83331947]
[1761352769818,0.7858013,3923.1,3923.0,4.14724166]
[1761352772221,0.7858013,3923.1,3923.0,4.83331947]
[1761352774217,0.5737013,3923.1,3923.0,4.96701947]
[1761352774724,0.3510013,3923.1,3923.0,4.96701947]
[1761352775027,0.0024013,3923.1,3923.0,5.19452983]
[1761352775427,0.3510013,3923.1,3923.0,4.28094166]
[1761352776820,0.3510013,3923.1,3923.0,5.19452983]
[1761352777328,0.0024013,3923.1,3923.0,5.19452983]
[1761352777529,0.0024013,3923.1,3923.0,4.28094166]
[1761352777828,0.0024013,3923.1,3923.0,5.65541129]
[1761352779231,0.3381,3924.7,3924.1,1.14661]
[1761352779417,0.3381,3925.6,3925.3,0.2622]
[1761352779623,0.3381,3925.6,3925.5,0.3933]
[1761352779824,0.5609,3925.6,3925.5,0.92830938]
[1761352780327,0.56361367,3925.6,3925.5,0.92830938]
[1761352781436,0.34081367,3925.6,3925.5,1.05940938]
[1761352782127,0.3381,3926.2,3926.1,0.58951]
[1761352782333,0.3381,3926.2,3926.1,0.85171]
[1761352783025,0.34131893,3926.2,3926.1,0.8539754]
[1761352783428,0.56411893,3926.2,3926.1,0.7228754]
[1761352784225,0.34131893,3926.2,3926.1,0.8539754]
[1761352784926,0.56411893,3926.2,3926.1,0.8539754]
[1761352785128,0.00321893,3926.2,3926.1,0.8539754]
[1761352785335,0.34131893,3926.2,3926.1,0.8539754]
[1761352786737,0.34131893,3926.2,3926.1,4.0617754]
[1761352787035,0.00321893,3926.2,3926.1,4.0617754]
[1761352787432,0.34131893,3926.2,3926.1,3.6033654]
[1761352787739,0.56411893,3926.2,3926.1,3.4722654]
[1761352788234,0.56411893,3926.2,3926.1,3.6033654]
[1761352788534,0.34131893,3926.2,3926.1,3.6033654]
[1761352793644,1.25140893,3926.2,3926.1,0.1333654]
[1761352793836,0.79301893,3926.2,3926.1,0.2644654]
[1761352802740,0.79301893,3926.2,3926.1,0.0022654]
[1761352803549,0.79301893,3926.2,3926.1,0.1331654]
[1761352803752,0.79301893,3926.2,3926.1,0.2640654]
[1761352805043,0.79301893,3926.2,3926.1,0.3949654]
[1761352805442,0.34131893,3926.2,3926.1,0.3949654]
[1761352806259,0.34131893,3926.2,3926.1,1.05625219]
[1761352806950,0.00321893,3926.2,3926.1,1.05625219]
[1761352808257,0.00321893,3926.2,3926.1,1.74308006]
[1761352808944,0.34671893,3926.2,3926.1,1.74308006]
[1761352809241,0.34671893,3926.2,3926.1,1.05625219]
[1761352810352,0.34671893,3926.2,3926.1,2.42990794]
[1761352810740,0.00321893,3926.2,3926.1,2.42990794]
[1761352810945,0.00321893,3926.2,3926.1,1.05625219]
[1761352811746,0.00321893,3926.2,3926.1,2.43011644]
[1761352811947,0.3435,3926.9,3926.8,0.85222]
[1761352812146,0.3435,3926.9,3926.8,2.20041983]
[1761352812948,0.34623315,3926.9,3926.8,2.20041983]
[1761352813750,0.57683315,3926.9,3926.8,2.06911983]
[1761352813956,0.79853315,3926.9,3926.8,2.06911983]
[1761352814455,0.79853315,3926.9,3926.8,1.38220679]
[1761352814849,0.57683315,3926.9,3926.8,1.51350679]
[1761352815357,0.57683315,3926.9,3926.8,1.38220679]
[1761352818157,0.79853315,3926.9,3926.8,1.38220679]
[1761352818859,0.57683315,3926.9,3926.8,1.51350679]
[1761352819061,0.57683315,3926.9,3926.8,1.38220679]
[1761352819760,0.79853315,3926.9,3926.8,0.92388679]
[1761352821862,0.79853315,3926.9,3926.8,1.83977084]
[1761352822253,0.79853315,3926.9,3926.8,0.92388679]
[1761352824657,0.57683315,3926.9,3926.8,0.92388679]
[1761352824864,0.57683315,3926.9,3926.8,1.05518679]
[1761352825660,0.57683315,3926.9,3926.8,0.92388679]
[1761352826060,0.79853315,3926.9,3926.8,0.92388679]
[1761352826461,0.34623315,3926.9,3926.8,1.97107084]
[1761352826657,5.45503315,3926.9,3926.7,0.68587738]
[1761352826862,0.45845,3925.8,3925.7,0.3481]
[1761352827058,3.66625,3925.8,3925.7,0.3481]
[1761352827754,3.66625,3925.8,3925.7,0.35018462]
[1761352828461,4.57568841,3925.8,3925.7,0.35018462]
[1761352828662,3.66625,3925.8,3925.7,0.35018462]
[1761352829362,4.57531508,3925.8,3925.7,0.35018462]
[1761352831376,3.66625,3925.8,3925.7,0.35018462]
[1761352835382,0.45844,3925.9,3925.8,0.3481]
[1761352835680,0.45844,3925.9,3925.8,0.798]
[1761352840277,9.028,3926.0,3925.9,0.3396]
[1761352840482,9.028,3926.0,3925.9,0.7974]
[1761352840881,9.48642,3926.0,3925.9,0.7974]
[1761352853287,10.39548508,3926.0,3925.9,0.7974]
[1761352855291,9.48642,3926.0,3925.9,0.7974]
[1761352856394,10.85191304,3926.0,3925.9,0.7974]
[1761352861793,9.48642,3926.0,3925.9,0.7974]
[1761352862695,0.45842,3926.0,3925.9,0.7974]
[1761352863292,1.82391304,3926.0,3925.9,0.7974]
[1761352863805,0.45842,3926.0,3925.9,0.7974]
[1761352864299,1.36549304,3926.0,3925.9,0.7974]
[1761352864510,1.36549304,3926.1,3926.0,0.947]
[1761352865303,5.03168304,3926.2,3926.1,0.3512]
[1761352865503,0.91313351,3926.2,3926.1,0.8101]
[1761352865805,0.91313351,3926.3,3926.2,0.8101]
[1761352866007,0.91313351,3926.4,3926.3,1.26848]
[1761352866397,4.57735706,3926.6,3926.4,0.8101]
[1761352866398,0.91313351,3926.5,3926.4,0.8101]
[1761352866804,0.91313351,3926.8,3926.7,0.8101]
[1761352867003,0.91313351,3926.8,3926.7,0.3512]
[1761352867311,2.26736464,3926.9,3926.7,0.3512]
[1761352868205,1.80631149,3926.8,3926.7,0.3512]
[1761352868408,2.26736464,3926.9,3926.7,0.3512]
[1761352871904,3.2078,3926.8,3926.7,0.3512]
[1761352872516,0.45834,3926.7,3926.6,0.3184]
[1761352872707,9.46434,3926.7,3926.6,0.3184]
[1761352873807,0.45841,3926.1,3926.0,0.1369]
[1761352874005,14.03908617,3926.1,3926.0,0.1369]
[1761352874407,13.58067617,3926.1,3926.0,0.5852]
[1761352874716,0.91195485,3926.1,3926.0,1.04362]
[1761352875012,0.91195485,3926.3,3926.2,0.4483]
[1761352875816,0.91195485,3926.3,3926.2,0.7667]
[1761352876416,9.005,3926.5,3926.4,0.5516]
[1761352876716,9.005,3926.5,3926.4,0.7667]
[1761352877113,9.91695485,3926.5,3926.4,0.3184]
[1761352877319,10.37287617,3926.5,3926.4,0.3184]
[1761352877508,10.37287617,3926.5,3926.4,0.5516]
[1761352877910,9.005,3926.5,3926.4,0.5516]
[1761352881226,9.005,3926.5,3926.4,0.3184]
[1761352881426,10.37287617,3926.5,3926.4,0.3184]
[1761352882323,10.37287617,3926.5,3926.1,0.3184]
[1761352882324,0.45839,3926.2,3926.1,0.3184]
[1761352882525,12.67219,3926.2,3926.1,0.3184]
[1761352883234,12.67219,3926.2,3926.0,0.1369]
[1761352883422,14.49602489,3926.2,3926.0,0.1369]
[1761352883725,14.49602489,3926.2,3926.0,0.4553]
[1761352884721,14.49602489,3926.2,3926.0,0.1369]
[1761352884923,14.49602489,3926.2,3926.1,0.3184]
[1761352886324,12.67219,3926.2,3926.1,0.3184]
[1761352889741,3.2078,3926.2,3926.1,0.7667]
[1761352890034,1.36946362,3926.4,3926.3,0.7667]
[1761352891940,9.91308362,3926.5,3926.4,0.3184]
[1761352892237,9.91308362,3926.5,3926.4,0.7667]
[1761352892632,9.002,3926.5,3926.4,0.7667]
[1761352897435,9.002,3926.5,3926.4,0.3184]
[1761352897942,9.002,3926.5,3926.4,0.7783]
[1761352903048,0.91057939,3926.8,3926.7,1.25914]
[1761352903646,0.91057939,3926.8,3926.7,0.8008]
[1761352904944,8.99973315,3926.9,3926.8,1.25912]
[1761352907046,0.00273315,3926.9,3926.8,1.25912]
[1761352912555,0.00273315,3926.9,3926.8,0.8008]
[1761352912750,0.00273315,3926.9,3926.8,0.3473]
[1761352914366,8.99473315,3926.9,3926.8,0.3473]
[1761352916153,10.36060223,3926.9,3926.8,0.3473]
[1761352917360,8.99473315,3926.9,3926.8,0.3473]
[1761352920270,8.99473315,3926.9,3926.8,0.7981]
[1761352927962,9.90636216,3926.9,3926.8,0.3473]
[1761352928278,8.99473315,3926.9,3926.8,0.3473]
[1761352935481,8.99473315,3926.9,3926.8,0.7923]
[1761352942175,10.36193216,3926.9,3926.8,0.7923]
[1761352943178,8.99473315,3926.9,3926.8,0.3473]
[1761352948989,8.99473315,3926.9,3926.8,0.5786]
[1761352950682,8.99473315,3926.9,3926.8,0.7923]
[1761352951284,10.36284452,3926.9,3926.8,0.7923]
[1761352952288,8.99473315,3926.9,3926.8,0.7923]
[1761352953290,10.82115452,3926.9,3926.8,0.3447]
[1761352955190,9.45304315,3926.9,3926.8,0.3447]
[1761352958095,13.99473315,3926.9,3926.5,0.1374]
[1761352958282,0.45838,3926.3,3926.2,0.34]
[1761352958488,0.4584,3926.1,3926.0,0.4769]
[1761352958788,0.45843,3925.9,3925.8,0.34]
[1761352958997,9.44643,3925.9,3925.8,0.34]
[1761352959201,10.81327241,3925.9,3925.8,0.34]
[1761352960296,9.44643,3925.9,3925.8,0.34]
[1761352961398,10.81327241,3925.9,3925.8,0.34]
[1761352961588,9.44643,3925.9,3925.8,0.34]
[1761352961787,9.44643,3925.9,3925.7,0.00208462]
[1761352962188,1.36488282,3925.8,3925.7,0.00208462]
[1761352962590,4.57268282,3925.8,3925.7,0.00208462]
[1761352964595,3.2078,3925.8,3925.7,0.00208462]
[1761352965103,4.57095509,3925.8,3925.7,0.00208462]
[1761352965495,3.2078,3925.8,3925.7,0.00208462]
[1761352965700,3.2078,3925.8,3925.0,0.1288]
[1761352965701,0.45852,3925.1,3925.0,0.1288]
[1761352965902,8.989,3925.1,3925.0,0.5625]
[1761352966097,8.989,3925.1,3925.0,0.9025]
[1761352966600,8.989,3925.1,3925.0,0.90463497]
[1761352969602,8.989,3925.1,3925.0,0.69263497]
[1761352970603,8.989,3925.1,3925.0,0.47093497]
[1761352971003,8.989,3925.1,3925.0,0.69263497]
[1761352973511,8.989,3925.1,3925.0,0.47093497]
[1761352973803,8.989,3925.1,3925.0,0.00213497]
[1761352977513,0.45858,3924.6,3924.5,3.677]
[1761352977713,9.44958,3924.6,3924.5,0.4692]
[1761352978714,9.44958,3924.6,3924.5,0.47098738]
[1761352984614,9.44958,3924.6,3924.5,0.00178738]
[1761352984817,9.44958,3924.6,3924.5,0.46708738]
[1761352986216,10.81265697,3924.6,3924.5,0.46708738]
[1761352987813,9.44958,3924.6,3924.5,0.12918738]
[1761352988114,9.44958,3924.6,3924.5,0.00178738]
[1761352992523,9.44958,3924.6,3924.5,0.33108738]
[1761352993117,9.44958,3924.6,3924.5,0.00178738]
[1761352995126,9.44958,3924.6,3924.5,0.33108738]
[1761352996922,9.44958,3924.6,3924.5,0.00178738]
[1761352999224,14.47853878,3924.6,3924.5,0.00178738]
[1761352999523,14.47853878,3924.6,3922.5,0.133]
[1761352999524,11.46518,3924.4,3923.1,0.2129]
[1761352999720,0.45874,3923.2,3923.1,0.2129]
[1761352999919,9.45174,3923.2,3923.1,0.2129]
[1761353000421,9.45434844,3923.2,3923.1,0.21481645]
[1761353001630,9.45434844,3923.2,3923.1,0.54411645]
[1761353002917,9.45434844,3923.2,3923.1,0.33121645]
[1761353003118,10.3628695,3923.2,3923.1,0.33121645]
[1761353003420,10.3628695,3923.2,3923.1,0.00191645]
[1761353003613,12.66214844,3923.2,3923.1,0.00191645]
[1761353005117,12.66214844,3923.2,3923.1,0.33121645]
[1761353005423,14.02349736,3923.2,3923.1,0.54411645]
[1761353007125,12.66214844,3923.2,3923.1,0.54411645]
[1761353007727,12.66214844,3923.2,3923.1,0.33121645]
[1761353011928,14.02349736,3923.2,3923.1,0.33121645]
[1761353012230,14.02349736,3923.2,3923.1,0.00191645]
[1761353013231,12.66214844,3923.2,3923.1,0.00191645]
[1761353019332,12.66214844,3923.2,3923.1,0.31971645]
[1761353019636,12.66214844,3923.2,3923.1,3.97921645]
[1761353019637,0.00260844,3923.2,3923.1,3.97921645]
[1761353019835,8.99860844,3923.2,3923.1,3.97921645]
[1761353020035,8.99860844,3923.2,3923.1,0.77141645]
[1761353021930,12.66514844,3923.2,3923.1,0.31971645]
[1761353022633,12.66514844,3923.2,3923.1,0.00191645]
[1761353022833,12.66514844,3923.2,3923.1,0.31971645]
[1761353026840,12.66514844,3923.2,3923.1,0.77141645]
[1761353027246,12.66514844,3923.2,3923.1,0.00191645]
[1761353027639,12.66514844,3923.2,3923.1,0.31971645]